bitfinex-derivatives/quotes_SOLF0:USTF0_20241021
["timestamp","ask_amount","ask_price","bid_price","bid_amount"]
[1729500446465,17.87,167.86,167.71,3.08144242]
[1729500446679,20.82034482,167.86,167.71,0.09924242]
[1729500447376,17.87,167.84,167.71,0.09924242]
[1729500447565,2.9814,167.77,167.71,0.09924242]
[1729500447770,4.76,167.76,167.71,0.09924242]
[1729500447966,6.0858,167.76,167.71,0.09924242]
[1729500448178,2.9819,167.74,167.71,0.09924242]
[1729500448383,1.2753,167.75,167.71,0.09924242]
[1729500449070,4.257,167.75,167.71,0.09924242]
[1729500450179,1.2753,167.75,167.71,0.09924242]
[1729500451883,2.9821,167.73,167.62,2.9839]
[1729500452179,4.76,167.72,167.61,4.76]
[1729500452569,7.7422,167.72,167.63,2.9837]
[1729500454880,2.9824,167.71,167.63,2.9837]
[1729500455778,4.76,167.72,167.61,4.76]
[1729500456477,2.9827,167.69,167.61,2.9841]
[1729500456783,4.76,167.68,167.6,1.3195]
[1729500456983,7.7432,167.67,167.6,1.3195]
[1729500458183,4.76,167.67,167.41,337.2287453]
[1729500458382,9.04345152,167.67,167.5,3.9022]
[1729500458780,9.04345152,167.67,167.51,4.76]
[1729500459286,2.9837,167.64,167.51,4.76]
[1729500459581,4.76,167.63,167.56,2.9849]
[1729500459986,1.2807,167.67,167.55,4.76]
[1729500460182,4.76,167.66,167.56,2.94037172]
[1729500460582,7.7432,167.66,167.6,2.9843]
[1729500461383,2.9836,167.64,167.57,6.9058]
[1729500462684,4.76,167.66,167.57,6.9058]
[1729500462685,2.9838,167.63,167.57,6.9058]
[1729500463083,2.9836,167.64,167.57,6.9058]
[1729500464589,2.9826,167.7,167.63,2.9837]
[1729500464793,4.76,167.71,167.58,4.76]
[1729500465191,2.9832,167.67,167.59,2.9843]
[1729500465390,4.76,167.66,167.58,4.76]
[1729500465691,4.76,167.66,167.57,3.9211]
[1729500466889,2.9834,167.65,167.58,2.9845]
[1729500467193,4.76,167.66,167.57,3.9211]
[1729500467397,2.9834,167.65,167.58,2.9845]
[1729500467591,2.9834,167.65,167.57,3.9211]
[1729500468992,2.9848,167.58,167.39,228.0]
[1729500469291,4.76,167.59,167.49,1.2982]
[1729500469783,4.76,167.59,167.49,4.27359067]
[1729500470189,4.76,167.59,167.47,1.2331]
[1729500470392,4.76,167.59,167.48,2.91863691]
[1729500470690,4.76,167.59,167.52,2.9856]
[1729500471188,7.7445,167.59,167.49,1.3157]
[1729500471490,4.76,167.59,167.49,1.3157]
[1729500471892,3.7226,167.64,167.49,1.3157]
[1729500472194,4.76,167.63,167.49,1.3157]
[1729500472889,2.9841,167.61,167.55,2.985]
[1729500473388,1.2112,167.68,167.53,4.9]
[1729500473591,4.9,167.67,167.54,1.358]
[1729500473793,2.5092,167.71,167.55,1.3406]
[1729500473995,2.9829,167.68,167.62,2.9839]
[1729500474183,4.9,167.7,167.59,4.9]
[1729500474387,4.9,167.7,167.6,7.89850979]
[1729500474592,4.9,167.7,167.6,4.9]
[1729500474794,2.9829,167.68,167.61,2.9839]
[1729500474989,2.9829,167.68,167.6,4.9]
[1729500475289,4.9,167.7,167.6,4.9]
[1729500476498,2.9828,167.69,167.63,2.9837]
[1729500477491,2.9827,167.69,167.62,2.9838]
[1729500478294,2.9827,167.69,167.63,2.9837]
[1729500478498,2.9827,167.69,167.6,4.9]
[1729500479799,2.983,167.68,167.63,2.9836]
[1729500479991,6.1761,167.71,167.61,1.2419]
[1729500480703,2.9829,167.68,167.62,2.9838]
[1729500480998,2.9832,167.67,167.61,1.2419]
[1729500481199,6.1761,167.71,167.61,1.2419]
[1729500481793,6.1761,167.71,167.61,4.226]
[1729500481992,6.1761,167.71,167.61,1.2419]
[1729500482398,9.22943676,167.71,167.61,1.2419]
[1729500482801,2.9832,167.66,167.6,2.9843]
[1729500483001,9.22943676,167.71,167.6,2.9843]
[1729500483399,9.22943676,167.71,167.58,4.9]
[1729500483400,27.11943676,167.71,167.58,2.9845]
[1729500484294,27.11943676,167.71,167.57,4.2404]
[1729500484695,27.11943676,167.71,167.57,1.2556]
[1729500484897,2.9838,167.63,167.55,6.2406]
[1729500485094,4.9,167.64,167.55,6.2406]
[1729500485298,4.9,167.63,167.55,6.2406]
[1729500485499,2.984,167.62,167.55,6.2406]
[1729500485700,4.9,167.63,167.55,6.2406]
[1729500486601,7.8839,167.63,167.56,2.9849]
[1729500487007,4.9,167.63,167.56,2.9849]
[1729500487210,4.9,167.63,167.55,1.3406]
[1729500487211,2.9842,167.61,167.55,1.3406]
[1729500487509,3.02437813,167.62,167.51,4.9]
[1729500487701,2.6853,167.62,167.5,4.9]
[1729500488008,2.9848,167.58,167.51,2.9859]
[1729500488213,4.9,167.59,167.5,4.9]
[1729500488808,4.9,167.61,167.5,4.9]
[1729500489211,2.9849,167.57,167.49,1.2284]
[1729500489511,4.9,167.61,167.49,6.1284]
[1729500489714,2.9848,167.58,167.51,2.9857]
[1729500490414,4.9,167.61,167.49,9.1146]
[1729500490605,1.3441,167.6,167.49,6.1284]
[1729500490802,1.3441,167.6,167.49,1.2284]
[1729500491310,2.985,167.56,167.49,1.2284]
[1729500492122,2.985,167.56,167.5,2.986]
[1729500492514,4.9,167.57,167.49,1.2284]
[1729500492714,4.9,167.57,167.49,4.2146]
[1729500493109,2.9852,167.55,167.49,1.2284]
[1729500493312,4.9,167.57,167.49,1.2284]
[1729500493815,7.8849,167.57,167.51,2.9859]
[1729500494816,4.9,167.58,167.53,2.9854]
[1729500495019,4.9,167.58,167.49,1.2284]
[1729500495321,4.9,167.58,167.51,2.9858]
[1729500495915,1.3412,167.62,167.51,4.9]
[1729500496118,4.9,167.61,167.51,4.9]
[1729500497113,1.3496,167.67,167.55,2.985]
[1729500497114,2.9839,167.63,167.55,2.985]
[1729500497318,7.8839,167.63,167.55,2.985]
[1729500497522,4.9,167.63,167.49,1.2284]
[1729500498721,4.9,167.63,167.5,4.9]
[1729500498916,1.3496,167.67,167.5,4.9]
[1729500499117,2.9839,167.62,167.54,2.9852]
[1729500499319,2.9839,167.62,167.55,7.4456]
[1729500499820,2.9839,167.62,167.55,10.4307]
[1729500500725,2.9839,167.62,167.55,7.4456]
[1729500501517,2.9838,167.63,167.55,7.4456]
[1729500501719,4.9,167.66,167.55,7.4456]
[1729500502723,1.3496,167.67,167.55,7.4456]
[1729500502922,1.3496,167.67,167.56,6.2573]
[1729500502923,4.92,167.66,167.56,6.2573]
[1729500503325,2.984,167.62,167.56,6.2573]
[1729500504219,4.92,167.66,167.56,1.3373]
[1729500504414,4.92,167.66,167.54,4.92]
[1729500504619,2.9839,167.63,167.54,4.92]
[1729500504815,4.92,167.66,167.54,4.92]
[1729500505014,4.92,167.66,167.49,3.9082]
[1729500505323,2.9848,167.58,167.5,4.92]
[1729500505923,2.9849,167.57,167.5,4.92]
[1729500506118,2.5586,167.67,167.53,2.9854]
[1729500506325,2.5586,167.67,167.54,7.87525198]
[1729500506523,2.5586,167.67,167.54,4.92]
[1729500508525,2.9841,167.62,167.54,4.92]
[1729500508714,2.5586,167.67,167.54,4.92]
[1729500509017,2.9842,167.61,167.54,4.92]
[1729500509921,2.9843,167.6,167.54,4.92]
[1729500510121,2.5586,167.67,167.54,4.92]
[1729500510318,3.03214443,167.8,167.54,4.92]
[1729500510621,4.92,167.77,167.62,2.9838]
[1729500510825,4.92,167.77,167.63,8.8651]
[1729500511025,4.92,167.77,167.64,7.97482984]
[1729500511622,4.92,167.76,167.64,7.97482984]
[1729500511825,4.92,167.76,167.64,4.92]
[1729500512226,4.92,167.76,167.64,7.83418224]
[1729500514126,4.92,167.76,167.64,10.81768224]
[1729500514535,4.92,167.76,167.64,7.83418224]
[1729500515928,4.92,167.76,167.65,2.9834]
[1729500516232,4.92,167.76,167.64,7.83418224]
[1729500516736,4.92,167.76,167.65,4.92]
[1729500517436,4.92,167.76,167.65,7.9034]
[1729500517840,4.92,167.76,167.65,4.92]
[1729500518343,4.92,167.76,167.66,2.9832]
[1729500518836,4.92,167.76,167.67,4.92]
[1729500520137,4.92,167.76,167.64,5.89768224]
[1729500520330,4.92,167.76,167.64,4.92]
[1729500521335,4.92,167.76,167.63,3.9451]
[1729500521336,22.81,167.76,167.6,4.92]
[1729500522743,22.81,167.76,167.55,3.8146]
[1729500523047,22.81,167.76,167.44,230.97585963]
[1729500523238,22.81,167.76,167.45,8.6835]
[1729500523538,1.0,167.75,167.45,8.6835]
[1729500524746,22.81,167.76,167.58,2.9846]
[1729500525035,22.81,167.76,167.59,4.92]
[1729500525235,22.81,167.76,167.6,1.2491]
[1729500525835,4.92,167.76,167.6,1.2491]
[1729500527043,4.92,167.76,167.61,2.9841]
[1729500527744,4.92,167.76,167.6,1.2491]
[1729500528136,4.92,167.76,167.61,2.9841]
[1729500528544,4.92,167.76,167.6,1.2491]
[1729500528744,4.92,167.76,167.62,2.9839]
[1729500528939,4.92,167.76,167.63,4.92]
[1729500530442,4.92,167.76,167.6,1.2491]
[1729500530443,4.92,167.76,167.61,4.92]
[1729500530639,22.81,167.76,167.61,4.92]
[1729500531044,22.81,167.76,167.6,1.2491]
[1729500532444,4.92,167.76,167.6,1.2491]
[1729500532645,4.98,167.75,167.6,1.2491]
[1729500532850,4.98,167.74,167.62,2.9838]
[1729500533845,4.98,167.74,167.6,1.2491]
[1729500534049,4.98,167.74,167.63,2.9837]
[1729500534445,4.98,167.74,167.6,1.2491]
[1729500534446,4.98,167.74,167.62,2.9839]
[1729500534747,4.98,167.74,167.6,1.2491]
[1729500536152,4.98,167.74,167.6,4.2332]
[1729500536343,4.98,167.74,167.6,1.2491]
[1729500537744,4.98,167.74,167.57,5.4704]
[1729500537943,22.87,167.74,167.58,4.98]
[1729500538449,4.98,167.74,167.58,4.98]
[1729500539545,4.98,167.74,167.58,7.9646]
[1729500539744,22.87,167.74,167.58,4.98]
[1729500539945,22.87,167.74,167.55,1.2408]
[1729500540151,22.87,167.74,167.55,6.2208]
[1729500542551,22.87,167.74,167.55,1.2408]
[1729500544154,22.87,167.73,167.55,4.2259]
[1729500544347,26.6,167.72,167.55,4.2259]
[1729500544549,26.6,167.72,167.55,1.2408]
[1729500544854,17.89,167.7,167.52,4.98]
[1729500545057,17.89,167.7,167.53,2.9854]
[1729500545250,17.89,167.7,167.53,6.8894]
[1729500545559,17.89,167.7,167.53,3.904]
[1729500548762,64.5,167.71,167.55,2.985]
[1729500548953,82.39,167.71,167.53,3.904]
[1729500549458,82.39,167.71,167.54,2.9853]
[1729500550660,64.5,167.71,167.55,2.985]
[1729500550849,4.98,167.7,167.53,6.87795221]
[1729500551054,4.98,167.7,167.54,4.98]
[1729500551251,4.98,167.7,167.56,2.9849]
[1729500551756,4.98,167.7,167.56,4.98]
[1729500552660,4.98,167.7,167.56,7.9649]
[1729500552854,64.5,167.71,167.56,4.98]
[1729500553054,4.98,167.7,167.56,4.98]
[1729500554367,4.98,167.7,167.6,2.9843]
[1729500554660,4.98,167.7,167.61,4.98]
[1729500556959,1.25,167.72,167.61,4.98]
[1729500557156,4.98,167.74,167.62,3.8052]
[1729500557459,2.94140419,167.76,167.64,2.9835]
[1729500557663,4.98,167.77,167.65,4.98]
[1729500558052,4.98,167.77,167.68,2.9827]
[1729500558367,4.98,167.77,167.65,4.98]
[1729500558558,4.98,167.77,167.67,2.983]
[1729500559062,4.98,167.77,167.68,2.9829]
[1729500560363,1.3474,167.79,167.71,2.9823]
[1729500560554,4.98,167.81,167.71,4.98]
[1729500560753,1.2697,167.82,167.72,1.2918]
[1729500560960,4.98,167.83,167.72,1.2918]
[1729500561161,2.472,167.86,167.73,2.5052]
[1729500561372,4.98,167.85,167.73,2.5052]
[1729500561859,4.98,167.85,167.75,2.9816]
[1729500562061,4.98,167.85,167.76,4.98]
[1729500563665,1.2656,167.86,167.76,4.98]
[1729500563865,4.88,167.9,167.76,4.98]
[1729500564063,4.88,167.91,167.76,4.98]
[1729500564272,6.0864,167.94,167.81,2.9805]
[1729500564569,9.03937356,167.94,167.82,8.7302]
[1729500564762,9.03937356,167.94,167.83,4.88]
[1729500565172,6.0864,167.94,167.83,4.88]
[1729500565359,6.0864,167.94,167.82,1.2401]
[1729500567074,6.0864,167.94,167.74,2.6145]
[1729500567373,6.0864,167.94,167.76,2.9814]
[1729500567964,23.9764,167.94,167.75,1.3177]
[1729500568166,23.9764,167.94,167.76,4.88]
[1729500570675,6.0864,167.94,167.76,4.88]
[1729500570885,4.88,167.93,167.76,4.88]
[1729500571472,1.2064,167.94,167.76,4.88]
[1729500571879,4.88,167.93,167.76,4.88]
[1729500572178,1.3307,167.96,167.76,4.88]
[1729500572381,6.2107,167.96,167.76,4.88]
[1729500572577,6.2107,167.96,167.87,2.9794]
[1729500572883,1.3307,167.96,167.87,4.88]
[1729500573085,1.3307,167.96,167.88,1.3459]
[1729500573285,1.2425,167.97,167.88,1.3459]
[1729500573481,4.88,167.98,167.88,1.3459]
[1729500573881,4.88,167.98,167.88,4.3252]
[1729500574080,4.88,167.99,167.88,4.3252]
[1729500574681,4.88,167.99,167.9,2.9789]
[1729500575388,2.6995,168.02,167.91,4.88]
[1729500575584,4.88,168.01,167.91,7.8586]
[1729500575785,4.88,168.01,167.91,4.88]
[1729500576190,5.7215106,168.02,167.91,4.88]
[1729500576385,4.88,168.01,167.91,4.88]
[1729500577487,4.88,168.01,167.92,2.9786]
[1729500577688,7.5795,168.02,167.91,4.88]
[1729500578093,6.2275,168.02,167.91,4.88]
[1729500578499,1.3475,168.02,167.91,4.88]
[1729500578697,4.88,168.05,167.91,4.88]
[1729500579098,8.7384,168.08,167.96,2.9779]
[1729500579297,8.7384,168.08,167.97,6.2196]
[1729500581202,8.7384,168.08,167.93,2.9783]
[1729500581402,8.7384,168.08,167.87,2.5293]
[1729500581403,8.7384,168.08,167.94,4.88]
[1729500581898,8.7384,168.08,167.88,1.3396]
[1729500582101,8.7384,168.08,167.89,4.88]
[1729500582102,26.6284,168.08,167.89,4.88]
[1729500582999,26.6284,168.08,167.88,1.3396]
[1729500583497,26.6284,168.08,167.89,4.88]
[1729500585103,26.6284,168.08,167.89,7.8591]
[1729500585802,21.7484,168.08,167.89,4.88]
[1729500586004,4.88,168.07,167.89,4.88]
[1729500586399,4.88,168.07,167.93,2.9784]
[1729500586600,4.88,168.07,167.89,4.88]
[1729500587406,4.88,168.07,167.91,2.9788]
[1729500588807,22.77,168.07,167.89,7.8591]
[1729500589503,4.88,168.07,167.9,2.9788]
[1729500589804,4.88,168.07,167.89,4.88]
[1729500590703,3.8584,168.08,167.89,4.88]
[1729500590911,4.88,168.07,167.89,4.88]
[1729500591300,4.88,168.07,167.94,2.9782]
[1729500591603,4.88,168.07,167.95,4.88]
[1729500591797,3.8584,168.08,167.95,4.88]
[1729500592004,4.88,168.07,167.95,4.88]
[1729500592308,4.88,168.07,167.96,1.2955]
[1729500594608,4.88,168.07,167.95,4.88]
[1729500595313,22.77,168.07,167.88,1.2384]
[1729500595509,22.77,168.07,167.89,4.88]
[1729500595911,22.77,168.07,167.89,7.8591]
[1729500596915,22.77,168.07,167.9,4.88]
[1729500598809,22.77,168.07,167.88,1.2384]
[1729500599010,77.09262693,168.07,167.88,1.2384]
[1729500599210,22.77,168.07,167.88,1.2384]
[1729500599813,77.09262693,168.07,167.88,1.2384]
[1729500600814,77.09262693,168.07,167.83,2.6371]
[1729500601025,72.21262693,168.05,167.86,4.88]
[1729500601311,4.88,168.04,167.86,4.88]
[1729500602911,4.88,168.04,167.88,2.9793]
[1729500603517,4.88,168.04,167.86,4.88]
[1729500604217,4.88,168.04,167.88,2.9792]
[1729500604813,22.77,168.04,167.85,2.92175962]
[1729500605018,77.09262693,168.04,167.86,4.88]
[1729500605214,72.21262693,168.02,167.86,4.88]
[1729500605415,3.8284,168.01,167.86,4.88]
[1729500605714,4.88,168.0,167.86,4.88]
[1729500606018,4.88,168.0,167.87,2.9794]
[1729500606317,4.88,168.0,167.86,4.88]
[1729500607221,4.88,168.0,167.87,2.9794]
[1729500607425,3.8284,168.01,167.86,4.88]
[1729500607614,4.88,168.0,167.89,2.9791]
[1729500607921,4.88,168.0,167.9,6.1486]
[1729500608117,4.88,168.03,167.92,2.9784]
[1729500608319,4.88,168.04,167.9,6.1486]
[1729500608514,4.88,168.04,167.91,2.5933]
[1729500609112,4.88,168.04,167.93,2.9784]
[1729500609320,4.88,168.04,167.94,4.88]
[1729500610721,4.88,168.04,167.94,7.8582]
[1729500611320,1.2698,168.06,167.94,4.88]
[1729500611621,4.88,168.06,167.96,2.9778]
[1729500611820,4.88,168.06,167.97,1.3491]
[1729500612316,4.88,168.07,167.97,1.3491]
[1729500612522,4.88,168.07,167.97,4.3268]
[1729500614124,4.88,168.07,167.97,1.3491]
[1729500614925,65.7127,168.09,167.98,4.88]
[1729500615123,4.88,168.08,167.98,4.88]
[1729500615429,1.2927,168.09,167.99,2.9773]
[1729500615625,6.1727,168.09,167.99,2.9773]
[1729500616224,2.95071508,168.12,167.99,2.9773]
[1729500616428,7.83071508,168.12,168.02,2.9768]
[1729500616633,1.3444,168.14,168.02,4.88]
[1729500616928,6.2244,168.14,168.02,10.79619025]
[1729500617128,6.2244,168.14,168.02,7.81939025]
[1729500617324,6.2244,168.14,168.02,4.88]
[1729500617730,6.2244,168.14,168.01,4.88]
[1729500617926,1.2019,168.13,168.01,4.88]
[1729500619223,1.2019,168.13,167.98,2.6393]
[1729500619424,1.2019,168.13,167.98,7.5193]
[1729500619730,55.52452693,168.13,167.98,7.5193]
[1729500620123,55.52452693,168.13,167.97,1.3491]
[1729500620327,72.21262693,168.11,167.97,1.3491]
[1729500620522,59.20262693,168.1,167.97,1.3491]
[1729500620726,77.09262693,168.1,167.97,1.3491]
[1729500620928,17.89,168.08,167.94,4.88]
[1729500621124,1.2784,168.07,167.94,4.88]
[1729500621324,4.88,168.06,167.94,4.88]
[1729500621532,4.88,168.06,167.95,2.9781]
[1729500622128,4.88,168.06,167.94,4.88]
[1729500622329,1.2006,168.05,167.94,4.88]
[1729500623128,1.2006,168.05,167.9,2.9788]
[1729500623337,1.2006,168.05,167.91,4.86]
[1729500624234,1.2006,168.05,167.89,2.5907]
[1729500624435,1.2006,168.05,167.89,7.4507]
[1729500624636,1.2006,168.05,167.89,1.2827]
[1729500624832,1.2006,168.05,167.84,3.01592596]
[1729500624833,1.2006,168.05,167.86,4.86]
[1729500625830,1.2006,168.05,167.87,2.5414]
[1729500626829,4.86,168.04,167.87,2.5414]
[1729500627434,4.86,168.04,167.93,2.9784]
[1729500627631,4.86,168.04,167.94,1.2877]
[1729500629036,4.86,168.04,167.92,4.86]
[1729500629233,59.18262693,168.04,167.89,4.86]
[1729500629632,54.32262693,168.02,167.89,4.86]
[1729500629832,1.2518,168.01,167.89,4.86]
[1729500630033,4.86,168.0,167.89,4.86]
[1729500630234,6.1,168.0,167.89,4.86]
[1729500630641,6.1,168.0,167.88,1.2877]
[1729500632444,4.86,167.99,167.88,1.2877]
[1729500632936,1.24,168.0,167.88,1.2877]
[1729500633137,4.86,167.99,167.88,1.2877]
[1729500633439,4.86,167.99,167.9,2.9788]
[1729500633738,4.86,167.99,167.9,7.8388]
[1729500634445,4.86,167.99,167.9,4.86]
[1729500635035,4.86,167.99,167.88,1.2877]
[1729500635234,4.86,167.99,167.84,4.86]
[1729500635540,55.52442693,167.98,167.84,4.86]
[1729500635741,58.52276455,167.98,167.84,4.86]
[1729500636335,4.20013762,167.98,167.84,4.86]
[1729500636641,4.20013762,167.98,167.84,7.84]
[1729500637741,4.20013762,167.98,167.83,4.2523]
[1729500638042,4.20013762,167.98,167.83,9.1123]
[1729500638242,22.09013762,167.98,167.83,1.2722]
[1729500642045,22.09013762,167.98,167.79,10.3637]
[1729500642441,22.09013762,167.98,167.79,7.3829]
[1729500642745,22.09013762,167.98,167.8,2.9806]
[1729500642946,22.09013762,167.98,167.79,7.3829]
[1729500643842,22.09013762,167.98,167.81,2.9805]
[1729500645044,22.09013762,167.98,167.8,2.9807]
[1729500646555,22.09013762,167.98,167.79,7.3829]
[1729500647247,22.09013762,167.98,167.82,2.9803]
[1729500649655,22.09013762,167.98,167.79,7.3829]
[1729500649656,22.09013762,167.98,167.79,10.3637]
[1729500649853,22.09013762,167.98,167.79,7.3829]
[1729500650056,22.09013762,167.98,167.8,2.9807]
[1729500650653,22.09013762,167.98,167.81,2.9806]
[1729500655858,22.09013762,167.98,167.83,2.98]
[1729500656064,4.76,167.97,167.83,2.98]
[1729500657259,22.65,167.97,167.79,7.3829]
[1729500657459,22.65,167.97,167.81,2.9804]
[1729500657959,22.65,167.97,167.83,2.9801]
[1729500658161,22.65,167.97,167.79,7.3829]
[1729500659469,22.65,167.97,167.81,2.9805]
[1729500659759,22.65,167.97,167.78,1.2578]
[1729500660165,22.65,167.97,167.78,4.2388]
[1729500660961,22.65,167.97,167.78,1.2578]
[1729500661960,22.65,167.97,167.78,4.2388]
[1729500663870,17.89,167.97,167.78,1.2578]
[1729500664062,4.20013762,167.98,167.8,2.9807]
[1729500664063,17.89,167.95,167.8,2.9807]
[1729500664268,1.2234,167.94,167.8,2.9807]
[1729500664670,6.0634,167.93,167.81,2.9804]
[1729500665970,6.0634,167.93,167.8,2.9807]
[1729500667567,23.9534,167.93,167.79,2.588]
[1729500667770,23.9534,167.93,167.78,6.0178]
[1729500669076,23.9534,167.93,167.78,8.9988]
[1729500670078,78.27602693,167.93,167.78,8.9988]
[1729500670771,54.32262693,167.92,167.78,8.9988]
[1729500671171,1.2036,167.91,167.78,6.0178]
[1729500671577,4.76,167.9,167.78,6.0178]
[1729500671978,4.76,167.9,167.78,8.9988]
[1729500672276,3.0335989,167.89,167.78,8.9988]
[1729500672466,1.2036,167.91,167.78,6.0178]
[1729500672670,4.76,167.9,167.78,6.0178]
[1729500673072,4.76,167.89,167.81,2.9805]
[1729500673271,4.76,167.89,167.78,8.6392]
[1729500673870,4.76,167.89,167.81,2.9804]
[1729500674676,4.76,167.89,167.8,2.9807]
[1729500674872,4.76,167.89,167.78,3.8792]
[1729500675077,4.76,167.89,167.78,8.6392]
[1729500675078,7.71692355,167.89,167.78,8.6392]
[1729500675276,7.71692355,167.89,167.5,23.65180507]
[1729500675277,25.60692355,167.89,167.64,5.9671]
[1729500675582,1.2041,167.88,167.7,3.9153]
[1729500675876,1.2041,167.88,167.76,2.9814]
[1729500676078,1.274,167.87,167.76,2.9814]
[1729500676674,4.76,167.86,167.78,2.981]
[1729500677271,4.76,167.86,167.7,3.9153]
[1729500677470,1.2852,167.85,167.71,4.76]
[1729500677873,1.2852,167.85,167.75,2.9815]
[1729500678170,1.2852,167.85,167.75,4.76]
[1729500678580,1.2852,167.85,167.77,2.9812]
[1729500679080,1.2852,167.85,167.75,7.7415]
[1729500679983,1.2852,167.85,167.75,4.76]
[1729500680385,1.2852,167.85,167.7,3.9153]
[1729500680579,1.2852,167.85,167.72,2.9821]
[1729500680788,1.2852,167.85,167.71,4.76]
[1729500681082,1.2852,167.85,167.71,7.7422]
[1729500681381,1.2852,167.85,167.7,1.2419]
[1729500681682,1.2852,167.85,167.69,4.76]
[1729500681881,1.2852,167.85,167.64,2.5797]
[1729500682082,1.2852,167.85,167.64,7.3397]
[1729500682483,1.2852,167.85,167.62,4.76]
[1729500682782,1.2852,167.85,167.63,2.9837]
[1729500682975,1.2852,167.85,167.6,2.6489]
[1729500683197,1.2852,167.85,167.61,4.78]
[1729500683484,1.0,167.84,167.61,7.764]
[1729500683685,1.0,167.84,167.61,4.78]
[1729500684374,1.0,167.84,167.62,2.9839]
[1729500684582,1.0,167.84,167.61,4.78]
[1729500684781,17.89,167.82,167.61,4.78]
[1729500684982,17.89,167.8,167.64,2.9835]
[1729500685280,23.9695,167.79,167.64,2.9835]
[1729500685677,1.2778,167.78,167.64,2.9835]
[1729500686690,4.78,167.77,167.61,4.78]
[1729500687085,4.78,167.77,167.64,2.9835]
[1729500687284,4.78,167.77,167.65,4.78]
[1729500690691,4.78,167.77,167.61,2.9841]
[1729500690895,22.67,167.77,167.61,2.9841]
[1729500691391,22.67,167.77,167.6,7.4289]
[1729500691583,1.2778,167.78,167.6,7.4289]
[1729500691784,4.78,167.76,167.6,7.4289]
[1729500693494,4.78,167.76,167.64,2.9836]
[1729500695289,4.78,167.76,167.6,7.4289]
[1729500695794,4.78,167.76,167.64,2.9835]
[1729500697692,4.78,167.76,167.6,7.4289]
[1729500697994,4.78,167.76,167.6,2.6489]
[1729500698384,4.78,167.76,167.62,2.9839]
[1729500698791,4.78,167.76,167.6,2.6489]
[1729500698992,4.78,167.76,167.62,2.9839]
[1729500699798,4.78,167.76,167.57,2.94297217]
[1729500699799,22.67,167.76,167.57,2.94297217]
[1729500699998,22.67,167.76,167.55,4.78]
[1729500700296,22.67,167.76,167.57,2.9848]
[1729500700496,22.67,167.76,167.55,4.78]
[1729500701285,22.67,167.76,167.57,2.9848]
[1729500703093,22.67,167.76,167.55,4.78]
[1729500703296,22.67,167.76,167.56,2.9849]
[1729500703499,22.67,167.76,167.57,1.3099]
[1729500705096,4.78,167.75,167.57,4.24693326]
[1729500705298,1.2064,167.74,167.58,2.6654]
[1729500705600,1.2064,167.74,167.6,2.9842]